bitfinex-derivatives/quotes_BNBF0:USTF0_20250309
["timestamp","ask_amount","ask_price","bid_price","bid_amount"]
[1741484059913,0.29442372,591.41,590.91,2.04346101]
[1741484060113,0.89325683,591.4,590.91,2.04346101]
[1741484060307,0.29442372,591.41,590.91,2.04346101]
[1741484060508,0.89333622,591.4,590.91,2.04346101]
[1741484060707,0.89333622,591.39,590.91,2.04346101]
[1741484060907,0.89333622,591.38,590.91,2.88146101]
[1741484061113,0.89333622,591.37,590.91,2.88146101]
[1741484061307,0.89333622,591.36,590.91,2.88146101]
[1741484061510,0.89333622,591.35,590.91,2.88146101]
[1741484061808,0.89333622,591.34,590.91,2.88146101]
[1741484062013,0.89333622,591.33,590.91,2.88146101]
[1741484062209,0.89333622,591.32,590.91,2.88146101]
[1741484062412,0.89333622,591.31,590.91,2.88146101]
[1741484062608,0.89333622,591.3,590.91,2.88146101]
[1741484062810,0.89333622,591.29,590.91,2.88146101]
[1741484063113,0.89333622,591.28,590.91,2.88146101]
[1741484063316,0.89333622,591.27,590.91,2.88146101]
[1741484063511,0.89333622,591.26,590.91,2.88146101]
[1741484063815,0.89333622,591.25,590.91,2.88146101]
[1741484064016,0.29441624,591.41,590.91,2.88146101]
[1741484064216,0.89345781,591.4,590.91,2.88146101]
[1741484064413,0.89345781,591.39,590.91,2.88146101]
[1741484064616,0.89345781,591.38,590.91,2.88146101]
[1741484064814,0.89345781,591.37,590.91,2.88146101]
[1741484065010,0.89345781,591.36,590.91,2.88146101]
[1741484065209,0.89345781,591.35,590.91,2.88146101]
[1741484065414,0.89345781,591.34,590.91,2.88146101]
[1741484065613,0.89345781,591.33,590.91,2.88146101]
[1741484065916,0.89345781,591.32,590.91,2.88146101]
[1741484066116,0.89345781,591.31,590.91,2.88146101]
[1741484066316,0.89345781,591.3,590.91,2.88146101]
[1741484066518,0.89345781,591.29,590.91,2.88146101]
[1741484066716,0.89345781,591.28,590.91,2.88146101]
[1741484066913,0.89345781,591.27,590.91,2.88146101]
[1741484067117,0.89345781,591.26,590.91,2.88146101]
[1741484067420,0.29441749,591.41,590.91,2.88146101]
[1741484067618,0.89378354,591.4,590.91,2.88146101]
[1741484067818,0.89378354,591.39,590.91,2.88146101]
[1741484068021,0.89378354,591.38,590.91,2.88146101]
[1741484068212,0.89378354,591.37,590.91,2.88146101]
[1741484068517,0.89378354,591.36,590.91,2.88146101]
[1741484068712,0.89381707,591.35,590.91,2.88146101]
[1741484068918,0.89381707,591.34,590.91,2.88146101]
[1741484069112,0.89381707,591.33,590.91,2.88146101]
[1741484069317,0.89381707,591.32,590.91,2.88146101]
[1741484069516,0.29440877,591.41,590.91,2.88146101]
[1741484069517,0.89381707,591.31,590.91,2.88146101]
[1741484069712,0.29440877,591.41,590.91,2.88146101]
[1741484069713,0.89381707,591.3,590.91,2.88146101]
[1741484069916,0.89381707,591.29,590.91,2.88146101]
[1741484070113,0.89381707,591.28,590.91,2.88146101]
[1741484070317,0.89381707,591.27,590.91,2.88146101]
[1741484070615,0.89381707,591.26,590.91,2.88146101]
[1741484070816,0.89381707,591.25,590.91,2.88146101]
[1741484071013,1.2617338,591.98,590.91,2.88146101]
[1741484071218,1.2617338,591.91,590.91,2.88146101]
[1741484071412,1.20476166,591.9,590.91,2.88146101]
[1741484071618,1.20476166,591.89,590.91,2.88146101]
[1741484071919,1.20476166,591.88,590.91,2.88146101]
[1741484072119,1.20476166,591.87,590.91,2.88146101]
[1741484072314,0.89395292,591.86,590.91,2.88146101]
[1741484072619,1.20476166,591.85,590.91,2.88146101]
[1741484072820,1.20486212,591.84,590.91,2.88146101]
[1741484073118,1.20486212,591.83,590.91,2.88146101]
[1741484073320,1.20486212,591.82,590.91,2.88146101]
[1741484073520,1.20486212,591.81,590.91,2.88146101]
[1741484073820,1.20486212,591.8,590.91,2.88146101]
[1741484074122,1.20486212,591.79,590.91,2.88146101]
[1741484074320,1.20486212,591.78,590.91,2.88146101]
[1741484074620,1.20486212,591.77,590.91,2.88146101]
[1741484074919,1.20486212,591.76,590.91,2.88146101]
[1741484075115,1.20486212,591.75,590.91,2.88146101]
[1741484075318,0.89405338,591.74,590.91,2.88146101]
[1741484075523,0.89405338,591.73,590.91,2.88146101]
[1741484075722,0.89405338,591.72,590.91,2.88146101]
[1741484075924,0.89405338,591.71,590.91,2.88146101]
[1741484076125,0.89405338,591.7,590.91,2.88146101]
[1741484076420,0.89405338,591.69,590.91,2.88146101]
[1741484076620,0.89405338,591.68,590.91,2.88146101]
[1741484076823,0.89405338,591.67,590.91,2.88146101]
[1741484077026,0.89405338,591.66,590.91,2.88146101]
[1741484077225,0.89405338,591.65,590.91,2.88146101]
[1741484077426,0.89405338,591.64,590.91,2.88146101]
[1741484077626,0.89405338,591.63,590.91,2.88146101]
[1741484077821,0.89405338,591.62,590.91,2.88146101]
[1741484078023,0.89405338,591.61,590.91,2.88146101]
[1741484078227,0.89405338,591.6,590.91,2.88146101]
[1741484078526,0.89405338,591.59,590.91,2.88146101]
[1741484078726,0.89405338,591.58,590.91,2.88146101]
[1741484078931,0.89405338,591.57,590.91,2.88146101]
[1741484079227,0.89405338,591.56,590.91,2.88146101]
[1741484079429,0.89405338,591.55,590.91,2.88146101]
[1741484079723,0.89405338,591.54,590.91,2.88146101]
[1741484079919,0.29438013,591.62,590.91,2.88146101]
[1741484079920,0.89405338,591.53,590.91,2.88146101]
[1741484080124,0.89405338,591.52,590.91,2.88146101]
[1741484080320,0.89405338,591.51,590.91,2.88146101]
[1741484080521,0.89405338,591.5,590.91,2.88146101]
[1741484080720,0.89405338,591.49,590.91,2.88146101]
[1741484080921,0.89405338,591.48,590.91,2.88146101]
[1741484081123,0.89405338,591.47,590.91,2.88146101]
[1741484081322,0.89405338,591.46,590.91,2.88146101]
[1741484081524,0.89405338,591.45,590.91,2.88146101]
[1741484081725,0.89405338,591.44,590.91,2.88146101]
[1741484081922,0.89405338,591.43,590.91,2.88146101]
[1741484082123,0.89405338,591.42,590.91,2.88146101]
[1741484082327,0.89405338,591.41,590.91,2.88146101]
[1741484082528,0.89405338,591.4,590.91,2.88146101]
[1741484082727,0.89405338,591.39,590.91,2.88146101]
[1741484082928,0.89405338,591.38,590.91,2.88146101]
[1741484083132,0.89405338,591.37,590.91,2.88146101]
[1741484083328,0.89405338,591.36,590.91,1.08446101]
[1741484083524,0.89405338,591.35,590.91,1.08446101]
[1741484083727,0.89405338,591.34,590.91,1.08446101]
[1741484084032,0.89405338,591.33,590.91,1.08446101]
[1741484084233,0.89405338,591.32,590.91,1.08446101]
[1741484084433,0.89405338,591.31,590.91,1.08446101]
[1741484084627,0.89405338,591.3,590.91,1.08446101]
[1741484084827,0.29441624,591.41,590.91,1.08446101]
[1741484084828,0.89405338,591.29,590.91,1.08446101]
[1741484085032,0.89405338,591.28,590.91,1.08446101]
[1741484085235,0.89405338,591.27,590.91,1.08446101]
[1741484085435,0.89605706,591.26,590.91,1.08446101]
[1741484085637,0.89605706,591.25,590.91,1.08446101]
[1741484085838,0.89605706,591.24,590.91,1.08446101]
[1741484086038,0.89605706,591.23,590.91,1.08446101]
[1741484086238,0.89605706,591.22,590.91,1.08446101]
[1741484086437,1.2617338,591.78,590.91,1.08446101]
[1741484086438,0.89605706,591.21,590.91,1.08446101]
[1741484086637,0.89605706,591.2,590.91,1.08446101]
[1741484086837,0.89605706,591.19,590.91,1.08446101]
[1741484087037,0.89605706,591.18,590.91,1.08446101]
[1741484087239,0.89605706,591.17,590.91,1.08446101]
[1741484087437,0.89605706,591.16,590.91,1.08446101]
[1741484087737,0.89605706,591.15,590.91,1.08446101]
[1741484087939,0.89605706,591.14,590.91,1.08446101]
[1741484088146,0.89605706,591.13,590.91,1.08446101]
[1741484088344,0.89605706,591.12,590.91,1.08446101]
[1741484088537,0.29443368,591.41,590.91,1.08446101]
[1741484088741,0.89625235,591.4,590.91,1.08446101]
[1741484088939,0.89625235,591.39,590.91,1.08446101]
[1741484089145,0.89625235,591.38,590.91,1.08446101]
[1741484089349,0.89625235,591.37,590.91,1.08446101]
[1741484089546,0.89625235,591.36,590.91,1.08446101]
[1741484089746,0.89625235,591.35,590.91,1.08446101]
[1741484089945,0.89625235,591.34,590.91,1.08446101]
[1741484090247,0.89625235,591.33,590.91,1.08446101]
[1741484090448,0.89625235,591.32,590.91,1.08446101]
[1741484090648,0.89625235,591.31,590.91,1.08446101]
[1741484090848,0.89625235,591.3,590.91,1.08446101]
[1741484091050,0.89625235,591.29,590.91,1.08446101]
[1741484091249,0.89625235,591.28,590.91,1.08446101]
[1741484091549,0.89625235,591.27,590.91,1.08446101]
[1741484091748,0.89625235,591.26,590.91,1.08446101]
[1741484091946,0.89625235,591.25,590.91,1.08446101]
[1741484092148,0.89625235,591.24,590.91,1.08446101]
[1741484092448,0.89625235,591.23,590.91,1.08446101]
[1741484092650,0.89625235,591.22,590.91,1.08446101]
[1741484092850,0.89625235,591.21,590.91,1.08446101]
[1741484093048,0.89625235,591.2,590.91,1.08446101]
[1741484093248,0.89625235,591.19,590.91,1.08446101]
[1741484093448,0.89705971,591.18,590.91,1.08446101]
[1741484093647,0.89705971,591.17,590.91,1.08446101]
[1741484093846,0.89705971,591.16,590.91,1.08446101]
[1741484094048,0.89705971,591.15,590.91,1.08446101]
[1741484094243,0.89705971,591.14,590.91,1.08446101]
[1741484094442,0.89705971,591.13,590.91,1.08446101]
[1741484094648,0.89705971,591.12,590.91,1.08446101]
[1741484094845,0.89705971,591.11,590.91,1.08446101]
[1741484095151,0.89756698,591.1,590.91,1.08446101]
[1741484095345,1.2617338,591.81,590.91,1.08446101]
[1741484095549,1.20840541,591.8,590.91,1.08446101]
[1741484095850,1.20840541,591.79,590.91,1.91546101]
[1741484096051,1.20840541,591.78,590.91,1.91546101]
[1741484096250,1.20840541,591.77,590.91,1.91546101]
[1741484096452,0.89758021,591.76,590.91,1.91546101]
[1741484096751,0.89758021,591.75,590.91,1.91546101]
[1741484096955,0.29434901,591.79,590.91,1.91546101]
[1741484096956,0.89758021,591.74,590.91,1.91546101]
[1741484097148,0.89758021,591.73,590.91,1.91546101]
[1741484097452,0.89758021,591.72,590.91,1.91546101]
[1741484097851,0.89758021,591.71,590.91,1.91546101]
[1741484098053,0.89758021,591.7,590.91,1.91546101]
[1741484098251,0.89758021,591.69,590.91,1.91546101]
[1741484098452,0.89758021,591.68,590.91,1.91546101]
[1741484098653,0.89758021,591.67,590.91,1.91546101]
[1741484098954,0.89758021,591.66,590.91,1.91546101]
[1741484099252,0.89758021,591.65,590.91,1.91546101]
[1741484099453,0.89758021,591.64,590.91,1.91546101]
[1741484099653,0.89758021,591.63,590.91,3.00446101]
[1741484099849,0.89758021,591.62,590.91,3.00446101]
[1741484100154,0.89758021,591.61,590.91,3.00446101]
[1741484100456,0.89758021,591.6,590.91,3.00446101]
[1741484100754,0.89758021,591.59,590.91,3.00446101]
[1741484100954,0.89758021,591.58,590.91,3.00446101]
[1741484101253,0.89844685,591.57,590.91,3.00446101]
[1741484101448,0.89844685,591.56,590.91,3.00446101]
[1741484101653,0.89844685,591.55,590.91,3.00446101]
[1741484101855,0.89844685,591.54,590.91,3.00446101]
[1741484102153,0.89844685,591.53,590.91,3.00446101]
[1741484102354,0.89844685,591.52,590.91,3.00446101]
[1741484102549,0.89844685,591.51,590.91,3.00446101]
[1741484102750,0.89844685,591.5,590.91,3.00446101]
[1741484102955,0.89844685,591.49,590.91,3.00446101]
[1741484103254,0.89844685,591.48,590.91,3.00446101]
[1741484103457,0.89844685,591.47,590.91,3.00446101]
[1741484103650,0.89844685,591.46,590.91,3.00446101]
[1741484103957,1.2617338,591.95,590.91,3.00446101]
[1741484103958,0.89844685,591.45,590.91,3.00446101]
[1741484104158,0.89844685,591.44,590.91,3.00446101]
[1741484104351,1.2617338,591.95,590.91,3.00446101]
[1741484104352,0.89844685,591.43,590.91,3.00446101]
[1741484104552,0.89844685,591.42,590.91,3.00446101]
[1741484104757,1.2617338,591.95,590.91,3.00446101]
[1741484104758,0.89844685,591.41,590.91,3.00446101]
[1741484104951,0.89844685,591.4,590.91,3.00446101]
[1741484105158,0.89844685,591.39,590.91,3.00446101]
[1741484105354,0.89844685,591.38,590.91,3.00446101]
[1741484105560,0.89844685,591.37,590.91,3.00446101]
[1741484105755,0.89844685,591.36,590.91,3.00446101]
[1741484105953,0.89844685,591.35,590.91,3.00446101]
[1741484106156,0.89844685,591.34,590.91,3.00446101]
[1741484106353,0.89844685,591.33,590.91,3.00446101]
[1741484106558,0.89844685,591.32,590.91,3.00446101]
[1741484106758,0.89844685,591.31,590.91,3.00446101]
[1741484107054,0.89844685,591.3,590.91,2.25846101]
[1741484107258,0.89844685,591.29,590.91,2.25846101]
[1741484107458,1.2617338,591.91,590.91,2.25846101]
[1741484107459,0.89844685,591.28,590.91,2.25846101]
[1741484107758,0.89844685,591.27,590.91,2.25846101]
[1741484108059,0.89844685,591.26,590.91,2.25846101]
[1741484108260,0.89844685,591.25,590.91,2.25846101]
[1741484108463,0.89844685,591.24,590.91,2.25846101]
[1741484108756,0.89844685,591.23,590.91,2.25846101]
[1741484108961,0.89844685,591.22,590.91,2.25846101]
[1741484109161,0.89844685,591.21,590.91,2.25846101]
[1741484109362,0.89844685,591.2,590.91,2.25846101]
[1741484109563,0.89844685,591.19,590.91,2.25846101]
[1741484109757,0.29439507,591.53,590.91,2.25846101]
[1741484109962,0.8980689,591.52,590.91,2.25846101]
[1741484110263,1.2617338,591.86,590.91,2.25846101]
[1741484110264,0.8980689,591.51,590.91,2.25846101]
[1741484110458,0.8980689,591.5,590.91,2.25846101]
[1741484110658,0.8980689,591.49,590.91,2.25846101]
[1741484110861,0.8980689,591.48,590.91,2.25846101]
[1741484111060,0.8980689,591.47,590.91,2.25846101]
[1741484111263,0.8980689,591.46,590.91,2.25846101]
[1741484111563,0.8980689,591.45,590.91,2.25846101]
[1741484111763,0.8980689,591.44,590.91,2.25846101]
[1741484111960,0.8980689,591.43,590.91,2.25846101]
[1741484112160,0.8980689,591.42,590.91,2.25846101]
[1741484112358,0.8980689,591.41,590.91,2.25846101]
[1741484112663,0.29436768,591.53,590.91,2.25846101]
[1741484112664,0.8980689,591.4,590.91,2.25846101]
[1741484112857,0.8980689,591.39,590.91,2.25846101]
[1741484113063,0.8980689,591.38,590.91,2.25846101]
[1741484113260,0.8980689,591.37,590.91,2.25846101]
[1741484113467,0.8980689,591.36,590.91,1.42746101]
[1741484113665,0.8980689,591.35,590.91,1.42746101]
[1741484113861,0.8980689,591.34,590.91,1.42746101]
[1741484114066,0.8980689,591.33,590.91,1.42746101]
[1741484114267,0.8980689,591.32,590.91,1.42746101]
[1741484114469,0.8980689,591.31,590.91,1.42746101]
[1741484114665,0.8980689,591.3,590.91,1.42746101]
[1741484114865,0.8980689,591.29,590.91,1.42746101]
[1741484115061,0.8980689,591.28,590.91,1.42746101]
[1741484115261,0.8980689,591.27,590.91,1.42746101]
[1741484115463,0.8980689,591.26,590.91,1.42746101]
[1741484115666,0.8980689,591.25,590.91,1.42746101]
[1741484115862,0.8980689,591.24,590.91,1.42746101]
[1741484116066,0.8980689,591.23,590.91,1.42746101]
[1741484116266,0.8980689,591.22,590.91,1.42746101]
[1741484116468,0.8980689,591.21,590.91,1.42746101]
[1741484116669,1.2617338,591.99,590.91,0.33846101]
[1741484116868,1.20849065,591.98,590.91,0.33846101]
[1741484117171,1.20849065,591.97,590.91,0.33846101]
[1741484117370,1.20844844,591.96,590.91,0.33846101]
[1741484117668,0.29430918,591.98,590.91,0.33846101]
[1741484117669,1.20844844,591.95,590.91,0.33846101]
[1741484117862,1.20844844,591.94,590.91,0.33846101]
[1741484118063,1.20844844,591.93,590.91,0.33846101]
[1741484118267,1.20844844,591.92,590.91,0.33846101]
[1741484118465,1.20844844,591.91,590.91,0.33846101]
[1741484118663,1.20844844,591.9,590.91,0.33846101]
[1741484118870,1.20844844,591.89,590.91,0.33846101]
[1741484119072,1.20844844,591.88,590.91,0.33846101]
[1741484119268,1.20844844,591.87,590.91,0.33846101]
[1741484119474,1.2617338,592.09,590.91,0.33846101]
[1741484119475,0.8976803,591.86,590.91,0.33846101]
[1741484119673,1.2617338,592.09,590.91,1.59346101]
[1741484119674,1.2084627,591.85,590.91,1.59346101]
[1741484119873,1.2617338,592.09,590.91,2.37246101]
[1741484119874,1.2084627,591.84,590.91,2.37246101]
[1741484120074,0.8976803,591.83,590.91,2.37246101]
[1741484120270,0.8976803,591.82,590.91,2.37246101]
[1741484120474,0.8976803,591.81,590.91,2.37246101]
[1741484120669,0.8976803,591.8,590.91,2.37246101]
[1741484120970,0.8976803,591.79,590.91,2.37246101]
[1741484121169,0.8976803,591.78,590.91,2.37246101]
[1741484121372,0.8976803,591.77,590.91,2.37246101]
[1741484121674,0.8976803,591.76,590.91,2.37246101]
[1741484121875,0.8976803,591.75,590.91,2.37246101]
[1741484122070,0.8976803,591.74,590.91,2.37246101]
[1741484122272,0.8976803,591.73,590.91,2.37246101]
[1741484122471,0.8976803,591.72,590.91,2.37246101]
[1741484122674,0.8976803,591.71,590.91,2.37246101]
[1741484122874,0.8976803,591.7,590.91,2.37246101]
[1741484123069,0.8976803,591.69,590.91,2.37246101]
[1741484123273,0.8976803,591.68,590.91,2.37246101]
[1741484123468,0.8976803,591.67,590.91,2.37246101]
[1741484123675,0.8976803,591.66,590.91,2.37246101]
[1741484123977,0.8976803,591.65,590.91,2.37246101]
[1741484124169,0.8976803,591.64,590.91,2.37246101]
[1741484124370,0.8976803,591.63,590.91,2.37246101]
[1741484124574,0.8976803,591.62,590.91,2.37246101]
[1741484124771,0.8976803,591.61,590.91,2.37246101]
[1741484124974,0.8976803,591.6,590.91,2.37246101]
[1741484125172,0.8976803,591.59,590.91,2.37246101]
[1741484125477,0.8976803,591.58,590.91,2.37246101]
[1741484125678,0.8976803,591.57,590.91,2.37246101]
[1741484125978,0.8976803,591.56,590.91,2.37246101]
[1741484126171,0.8976803,591.55,590.91,2.37246101]
[1741484126376,0.8976803,591.54,590.91,2.37246101]
[1741484126572,0.8976803,591.53,590.91,2.37246101]
[1741484126774,0.8976803,591.52,590.91,2.37246101]
[1741484126974,0.8976803,591.51,590.91,2.37246101]
[1741484127177,0.8976803,591.5,590.91,2.37246101]
[1741484127378,0.8976803,591.49,590.91,2.37246101]
[1741484127579,0.8976803,591.48,590.91,2.37246101]
[1741484127778,0.8976803,591.47,590.91,2.37246101]
[1741484127972,0.8976803,591.46,590.91,2.37246101]
[1741484128172,0.8976803,591.45,590.91,2.37246101]
[1741484128376,0.8976803,591.44,590.91,2.37246101]
[1741484128576,0.8976803,591.43,590.91,2.37246101]
[1741484128773,0.8976803,591.42,590.91,2.37246101]
[1741484128975,0.8976803,591.41,590.91,2.37246101]
[1741484129176,0.8976803,591.4,590.91,2.37246101]
[1741484129372,0.8976803,591.39,590.91,2.37246101]
[1741484129574,0.89745673,591.38,590.91,2.37246101]
[1741484129879,0.89745673,591.37,590.91,2.37246101]
[1741484130079,0.89745673,591.36,590.91,2.37246101]
[1741484130379,0.89745673,591.35,590.91,2.37246101]
[1741484130579,0.89745673,591.34,590.91,2.37246101]
[1741484130780,0.89745673,591.33,590.91,2.37246101]
[1741484130980,0.89745673,591.32,590.91,2.37246101]
[1741484131182,0.89745673,591.31,590.91,2.37246101]
[1741484131372,1.2617338,591.95,590.91,2.37246101]
[1741484131373,0.89745673,591.3,590.91,2.37246101]
[1741484131572,1.2617338,591.95,590.91,2.37246101]
[1741484131774,1.2082272,591.94,590.91,2.37246101]
[1741484131977,1.2082272,591.93,590.91,2.37246101]
[1741484132175,1.2082272,591.92,590.91,2.37246101]
[1741484132373,1.20822451,591.91,590.91,2.37246101]
[1741484132577,1.20822451,591.9,590.91,2.37246101]
[1741484132774,1.20822451,591.89,590.91,2.37246101]
[1741484132977,1.20822451,591.88,590.91,2.37246101]
[1741484133179,1.20822451,591.87,590.91,2.37246101]
[1741484133380,1.20822451,591.86,590.91,2.37246101]
[1741484133580,1.20822451,591.85,590.91,2.37246101]
[1741484133880,1.20804011,591.84,590.91,2.37246101]
[1741484134079,1.20804011,591.83,590.91,2.37246101]
[1741484134281,1.20804011,591.82,590.91,2.37246101]
[1741484134476,1.20804011,591.81,590.91,2.37246101]
[1741484134679,1.20804011,591.8,590.91,2.37246101]
[1741484134875,1.20804011,591.79,590.91,2.37246101]
[1741484135079,1.20804011,591.78,590.91,2.37246101]
[1741484135280,1.2617338,591.9,590.91,2.37246101]
[1741484135281,1.20804011,591.77,590.91,2.37246101]
[1741484135481,1.20804011,591.76,590.91,2.37246101]
[1741484135681,1.20804011,591.75,590.91,2.37246101]
[1741484135881,0.89724126,591.74,590.91,2.37246101]
[1741484136077,0.89724126,591.73,590.91,2.37246101]
[1741484136279,0.89724126,591.72,590.91,2.37246101]
[1741484136483,0.89724126,591.71,590.91,2.37246101]
[1741484136677,0.89724126,591.7,590.91,2.37246101]
[1741484136883,0.89724126,591.69,590.91,2.37246101]
[1741484137186,0.89724126,591.68,590.91,2.37246101]
[1741484137385,0.89724126,591.67,590.91,2.37246101]
[1741484137580,0.89724126,591.66,590.91,2.37246101]
[1741484137785,0.89724126,591.65,590.91,3.45746101]
[1741484137985,0.89724126,591.64,590.91,3.45746101]
[1741484138186,0.89724126,591.63,590.91,3.45746101]
[1741484138382,0.89724126,591.62,590.91,3.45746101]
[1741484138584,0.89724126,591.61,590.91,3.45746101]
[1741484138787,0.89724126,591.6,590.91,3.45746101]
[1741484138978,0.89724126,591.59,590.91,3.45746101]
[1741484139182,0.89724126,591.58,590.91,3.45746101]
[1741484139380,0.89724126,591.57,590.91,3.45746101]
[1741484139580,0.89724126,591.56,590.91,3.45746101]
[1741484139785,0.89724126,591.55,590.91,3.45746101]
[1741484139986,0.89724126,591.54,590.91,3.45746101]
[1741484140182,0.89724126,591.53,590.91,3.45746101]
[1741484140380,0.89724126,591.52,590.91,3.45746101]
[1741484140580,0.89724126,591.51,590.91,3.45746101]
[1741484140886,0.89724126,591.5,590.91,3.45746101]
[1741484141083,0.89724126,591.49,590.91,3.45746101]
[1741484141285,0.89724126,591.48,590.91,3.45746101]
[1741484141589,0.89724126,591.47,590.91,3.45746101]
[1741484141787,0.89724126,591.46,590.91,3.45746101]
[1741484141989,0.29439632,591.49,590.91,3.45746101]
[1741484141990,0.89739499,591.45,590.91,3.45746101]
[1741484142188,0.89739499,591.44,590.91,3.45746101]
[1741484142388,0.89739499,591.43,590.91,3.45746101]
[1741484142582,0.89739499,591.42,590.91,3.45746101]
[1741484142787,0.89739499,591.41,590.91,3.45746101]
[1741484142988,0.89739499,591.4,590.91,4.61646101]
[1741484143287,0.89739499,591.39,590.91,4.61646101]
[1741484143487,0.89739499,591.38,590.91,4.61646101]
[1741484143789,0.89739499,591.37,590.91,2.58246101]
[1741484143989,0.89739499,591.36,590.91,2.58246101]
[1741484144291,0.89739499,591.35,590.91,2.58246101]
[1741484144489,0.89739499,591.34,590.91,2.58246101]
[1741484144690,0.89739499,591.33,590.91,2.58246101]
[1741484144890,0.89739499,591.32,590.91,2.58246101]
[1741484145090,0.89739499,591.31,590.91,2.58246101]
[1741484145286,0.89739499,591.3,590.91,2.58246101]
[1741484145485,0.89749933,591.29,590.91,2.58246101]
[1741484145688,0.29441251,591.41,590.91,2.58246101]
[1741484145689,0.89749933,591.28,590.91,2.58246101]
[1741484145889,0.89749933,591.27,590.91,2.58246101]
[1741484146090,1.2617338,592.15,590.91,2.58246101]
[1741484146289,1.54606521,592.14,590.91,2.58246101]
[1741484146490,1.54607091,592.13,590.91,2.58246101]
[1741484146690,2.80781042,592.12,590.91,2.58246101]
[1741484146888,1.23527544,592.11,590.91,2.58246101]
[1741484147091,1.54608803,592.1,590.91,4.85746101]
[1741484147390,1.54609373,592.09,590.91,4.85746101]
[1741484147591,1.54609944,592.08,590.91,4.85746101]
[1741484147787,1.54610514,592.07,590.91,4.85746101]
[1741484147993,1.54611085,592.06,590.91,4.85746101]
[1741484148287,1.54611655,592.05,590.91,6.10546101]
[1741484148489,1.20830725,592.04,590.91,6.10546101]
[1741484148688,1.20830725,592.03,590.91,6.10546101]
[1741484148894,1.20830725,592.02,590.91,6.10546101]
[1741484149187,1.20830725,592.01,590.91,6.10546101]
[1741484149493,1.20830725,592.0,590.91,6.10546101]
[1741484149694,0.89750037,591.99,590.91,6.10546101]
[1741484149887,1.20830725,591.98,590.91,6.10546101]
[1741484150092,1.20830725,591.97,590.91,6.10546101]
[1741484150288,1.20830725,591.96,590.91,6.10546101]
[1741484150494,1.20830725,591.95,590.91,6.10546101]
[1741484150794,1.20830725,591.94,590.91,6.10546101]
[1741484150995,0.89750037,591.93,590.91,6.10546101]
[1741484151295,2.47004105,591.92,590.91,6.10546101]
[1741484151495,1.20830725,591.91,590.91,6.10546101]
[1741484151691,1.20830725,591.9,590.91,6.10546101]
[1741484151890,1.20830725,591.89,590.91,6.10546101]
[1741484152088,1.20830725,591.88,590.91,6.10546101]
[1741484152294,1.20858982,591.87,590.91,6.10546101]
[1741484152592,1.20858982,591.86,590.91,6.10546101]
[1741484152789,1.20858982,591.85,590.91,6.10546101]
[1741484153095,1.20858982,591.84,590.91,6.10546101]
[1741484153397,1.20858982,591.83,590.91,6.10546101]
[1741484153590,1.20858982,591.82,590.91,6.10546101]
[1741484153789,1.20858982,591.81,590.91,6.10546101]
[1741484154097,1.20858982,591.8,590.91,6.10546101]
[1741484154295,0.89778294,591.79,590.91,6.10546101]
[1741484154594,0.89828241,591.78,590.91,6.10546101]
[1741484154790,1.20913292,591.77,590.91,6.10546101]
[1741484154996,0.89828241,591.76,590.91,6.10546101]
[1741484155292,1.20912945,591.75,590.91,6.10546101]
[1741484155596,1.20912945,591.74,590.91,6.10546101]
[1741484155796,1.20912945,591.73,590.91,6.10546101]
[1741484156095,1.20912945,591.72,590.91,6.10546101]
[1741484156296,1.20912945,591.71,590.91,6.10546101]
[1741484156498,1.20912945,591.7,590.91,6.10546101]
[1741484156691,0.89828241,591.69,590.91,6.10546101]
[1741484156997,0.89828241,591.68,590.91,6.10546101]
[1741484157195,0.89828241,591.67,590.91,6.10546101]
[1741484157391,0.89828241,591.66,590.91,6.10546101]
[1741484157597,0.89828241,591.65,590.91,6.10546101]
[1741484157897,0.89828241,591.64,590.91,6.10546101]
[1741484158091,0.89828241,591.63,590.91,6.10546101]
[1741484158293,0.89828241,591.62,590.91,6.10546101]
[1741484158493,0.89744718,591.61,590.91,6.10546101]
[1741484158692,0.89744718,591.6,590.91,6.10546101]
[1741484158895,0.89744718,591.59,590.91,6.10546101]
[1741484159196,0.89744718,591.58,590.91,6.10546101]
[1741484159396,0.29441251,591.64,590.91,6.10546101]
[1741484159397,0.89744718,591.57,590.91,6.10546101]
[1741484159598,0.89744718,591.56,590.91,6.10546101]
[1741484159797,0.89744718,591.55,590.91,6.10546101]
[1741484159997,0.89744718,591.54,590.91,6.10546101]
[1741484160297,0.89744718,591.53,590.91,6.10546101]
[1741484160497,0.89744718,591.52,590.91,6.10546101]
[1741484160698,0.89744718,591.51,590.91,6.10546101]
[1741484160892,0.89744718,591.5,590.91,6.10546101]
[1741484161097,0.89744718,591.49,590.91,6.10546101]
[1741484161290,0.89744718,591.48,590.91,6.10546101]
[1741484161491,0.89744718,591.47,590.91,6.10546101]
[1741484161692,0.89744718,591.46,590.91,6.10546101]
[1741484161894,0.89744718,591.45,590.91,6.10546101]
[1741484162091,0.89744718,591.44,590.91,6.10546101]
[1741484162296,0.29441251,591.64,590.91,6.10546101]
[1741484162297,0.89744718,591.43,590.91,6.10546101]
[1741484162494,0.89744718,591.42,590.91,6.10546101]
[1741484162698,0.89744718,591.41,590.91,6.10546101]
[1741484162898,0.89744718,591.4,590.91,6.10546101]
[1741484163099,0.89744718,591.39,590.91,6.10546101]
[1741484163401,0.89744718,591.38,590.91,6.10546101]